[Event "54th Rubinstein Memorial-A 2018"]
[Site "Polanica-Zdroj"]
[Date "2018.08.24"]
[Round "7"]
[White "Lewtak, Damian"]
[Black "Sabuk, Piotr"]
[Result "1-0"]
[ECO "A45"]
[WhiteElo "2369"]
[BlackElo "2377"]
[Annotator "NA"]
[PlyCount "89"]
[EventDate "2018.08.18"]
[EventType "swiss"]
[EventCountry "POL"]
[SourceTitle "playchess.com"]
[Source "ChessBase"]
[SourceQuality "1"]
[TimeControl "40/5400+30:1800+30"]

1. d4 {[%emt 0:00:00]} Nf6 {[%emt 0:00:00]} 2. Bf4 {[%emt 0:00:00]} d5 {[%emt 0:00:01]} 3. e3 {[%emt 0:00:00]} c5 {[%emt 0:00:26]} 4. c3 {[%emt 0:00:22]} Nc6 {[%emt 0:00:18]} 5. Nd2 {[%emt 0:01:20] D00: Damenbauernspiele} cxd4 {[%emt 0:00:32]} (5... Bf5 6. Ngf3 e6 7. Be2 Bd6 8. dxc5 Bxc5 9. Nd4 Bg6 10. Qa4 O-O 11. Nxc6 bxc6 12. Qxc6 Rc8 13. Qa4 Re8 14. O-O e5 {0-1 (57) Le,Q (2737)-Ding,L (2777) Riadh 2017}) 6. exd4 {[%emt 0:00:07]} Bf5 {[%emt 0:00:28]} 7. Qb3 {[%emt 0:00:06]} Qc8 {[%emt 0:01:04]} 8. Ngf3 {[%emt 0:01:06]} e6 {[%emt 0:00:26]} 9. Nh4 {[%emt 0:00:40]} Be4 {[%emt 0:00:29]} 10. Nxe4 {[%emt 0:00:38]} dxe4 {[%emt 0:00:10]} 11. g3 {[%emt 0:03:54]} Be7 {[%emt 0:03:45]} 12. Ng2 {[%emt 0:00:29]} O-O {[%emt 0:02:18]} 13. Be2 {[%emt 0:02:03]} Nd5 {[%emt 0:00:52]} 14. Bd2 {[%emt 0:02:21]} Qd7 {[%emt 0:00:29] [#]} 15. Ne3 $146 {[%emt 0:03:18]} ({Vorgänger:} 15. f3 exf3 16. Bxf3 Na5 17. Qc2 Nc4 18. O-O {½-½ (18) Sedlak,N (2581)-Perunovic,M (2618) Hungary 2014}) 15... Bg5 {[%emt 0:15:02]} 16. h4 {[%emt 0:02:08]} Bh6 {[%emt 0:06:53]} 17. g4 {[%emt 0:00:56]} Bf4 {[%emt 0:01:09]} 18. Qc2 {[%emt 0:01:54]} f5 {[%emt 0:06:12]} 19. gxf5 $1 {[%emt 0:01:13]} exf5 {[%emt 0:05:44]} 20. Nxd5 {[%emt 0:00:11]} Bxd2+ {[%emt 0:00:23]} 21. Kxd2 {[%emt 0:00:14]} Qxd5 $16 {[%emt 0:00:52]} 22. Qb3 {[%emt 0:00:05]} Qxb3 {[%emt 0:00:53]} 23. axb3 {[%emt 0:00:05]} Rae8 {[%emt 0:19:30]} 24. b4 {[%emt 0:00:52]} a6 {[%emt 0:03:43]} 25. f4 {[%emt 0:04:12]} exf3 {[%emt 0:05:04]} 26. Bxf3 {[%emt 0:00:06]} Kf7 {[%emt 0:08:05]} 27. Bxc6 {[%emt 0:02:25]} bxc6 {[%emt 0:00:01]} 28. Rxa6 {[%emt 0:00:07]} Re6 {[%emt 0:00:23]} 29. Ra7+ {[%emt 0:00:06]} Kf6 {[%emt 0:02:04]} 30. Rg1 {[%emt 0:00:38]} Rf7 {[%emt 0:00:42]} 31. Rxf7+ {[%emt 0:00:07]} Kxf7 {[%emt 0:00:01]} 32. Kd3 {[%emt 0:02:36]} Kf6 {[%emt 0:09:12]} 33. d5 {[%emt 0:12:30]} cxd5 {[%emt 0:01:04]} 34. Kd4 {[%emt 0:00:07]} Re2 {[%emt 0:01:13]} 35. Rb1 {[%emt 0:00:34]} Ke6 {[%emt 0:06:09]} 36. Kc5 {[%emt 0:00:05]} f4 {[%emt 0:01:50]} 37. b5 {[%emt 0:02:06]} f3 {[%emt 0:00:05]} 38. Rf1 {[%emt 0:03:55]} f2 {[%emt 0:00:14]} 39. b4 {[%emt 0:00:08]} d4 {[%emt 0:00:59]} 40. Kxd4 {[%emt 0:00:00]} Kd6 {[%emt 0:00:00]} 41. c4 {[%emt 0:05:01]} Rb2 {[%emt 0:14:58]} 42. c5+ {[%emt 0:00:34]} Kd7 {[%emt 0:02:04]} 43. Kc4 {[%emt 0:00:48]} g6 {[%emt 0:02:06]} 44. Rd1+ {[%emt 0:00:29]} Kc8 {[%emt 0:05:19]} 45. b6 {[%emt 0:00:07]} 1-0

[Event "54th Rubinstein Memorial-A 2018"]
[Site "Polanica-Zdroj"]
[Date "2018.08.24"]
[Round "7"]
[White "Psyk, Radoslaw"]
[Black "Lapaj, Mateusz"]
[Result "1-0"]
[ECO "B31"]
[WhiteElo "2304"]
[BlackElo "2198"]
[Annotator "NA"]
[PlyCount "65"]
[EventDate "2018.08.18"]
[EventType "swiss"]
[EventCountry "POL"]
[SourceTitle "playchess.com"]
[Source "ChessBase"]
[SourceQuality "1"]
[TimeControl "40/5400+30:1800+30"]

1. e4 {[%emt 0:00:00]} c5 {[%emt 0:00:09]} 2. Nf3 {[%emt 0:00:00]} Nc6 {[%emt 0:00:12]} 3. Bb5 {[%emt 0:00:20]} g6 {[%emt 0:00:06]} 4. Bxc6 {[%emt 0:00:22]} dxc6 {[%emt 0:00:05]} 5. d3 {[%emt 0:00:17]} Bg7 {[%emt 0:00:13]} 6. h3 {[%emt 0:00:03]} Nf6 {[%emt 0:00:44]} 7. Nc3 {[%emt 0:01:48]} b6 {[%emt 0:00:31]} 8. O-O {[%emt 0:00:24]} O-O {[%emt 0:00:20]} 9. Be3 {[%emt 0:01:08]} e5 {[%emt 0:09:31]} 10. Qd2 {[%emt 0:03:00] LiveBook: 48 Games} Nd7 {[%emt 0:01:04]} 11. Bh6 {[%emt 0:02:20] B31: Sicilian: 2...Nc6 3 Bb5 g6} Qe7 {[%emt 0:01:05]} 12. Nh2 {[%emt 0:07:54]} f6 {[%emt 0:05:46]} (12... Qd6 13. Ne2 Ba6 14. Ng4 Nf6 15. Bxg7 Kxg7 16. Nxf6 Qxf6 {1-0 (60) Oral,T (2515)-Studnicka,T (2374) Ostrava 2014}) 13. Ne2 $146 {[%emt 0:13:12]} ({Predecessor:} 13. Bxg7 Kxg7 14. f4 exf4 15. Qxf4 Ne5 16. Nf3 Nxf3+ 17. Rxf3 Be6 18. Raf1 Rf7 {½-½ (50) Soto Hernandez,H (2362)-Adel Lahchaichi,O (2265) Havana 2011}) 13... Ba6 {[%emt 0:07:18]} 14. Bxg7 {[%emt 0:02:36]} Qxg7 {[%emt 0:00:27]} 15. Qc3 {[%emt 0:03:49]} Kh8 {[%emt 0:08:07]} 16. f4 $14 {[%emt 0:03:58]} Rae8 {[%emt 0:04:04]} 17. Qa3 {[%emt 0:10:09]} Bc8 {[%emt 0:00:14]} 18. Qxa7 {[%emt 0:03:27]} f5 {[%emt 0:06:05]} 19. fxe5 {[%emt 0:03:40]} Qxe5 {[%emt 0:03:45]} 20. Nc3 {[%emt 0:01:15]} fxe4 {[%emt 0:03:58]} 21. dxe4 {[%emt 0:02:14]} b5 {[%emt 0:08:30]} 22. Nf3 {[%emt 0:06:17]} Qf4 {[%emt 0:09:06]} 23. a3 {[%emt 0:01:41]} Kg8 {[%emt 0:06:33]} 24. Rad1 {[%emt 0:07:12]} Rf7 {[%emt 0:14:15]} 25. Kh1 {[%emt 0:02:18]} Ne5 {[%emt 0:02:24]} 26. Qxc5 {[%emt 0:07:03]} Bxh3 {[%emt 0:02:26]} 27. Nh2 {[%emt 0:00:50]} Bxg2+ {[%emt 0:05:40]} 28. Kxg2 {[%emt 0:00:03]} Qg5+ {[%emt 0:00:09]} 29. Kh1 {[%emt 0:00:09]} Ref8 {[%emt 0:00:06]} 30. Rxf7 {[%emt 0:01:07]} Rxf7 {[%emt 0:00:02]} 31. Rg1 {[%emt 0:07:08]} Qh5 {[%emt 0:00:14]} 32. Ne2 {[%emt 0:02:37]} Rd7 {[%emt 0:01:26]} 33. Nf4 {[%emt 0:01:01]} 1-0

[Event "54th Rubinstein Memorial-A 2018"]
[Site "Polanica-Zdroj"]
[Date "2018.08.24"]
[Round "7"]
[White "Sanz Wawer, Daniel"]
[Black "Mika, Tomasz"]
[Result "0-1"]
[ECO "B24"]
[WhiteElo "2180"]
[BlackElo "2120"]
[Annotator "NA"]
[PlyCount "84"]
[EventDate "2018.08.18"]
[EventType "swiss"]
[EventCountry "POL"]
[SourceTitle "playchess.com"]
[Source "ChessBase"]
[SourceQuality "1"]
[TimeControl "40/5400+30:1800+30"]

1. e4 {[%emt 0:04:01]} c5 {[%emt 0:00:00]} 2. Nc3 {[%emt 0:00:12]} Nc6 {[%emt 0:00:00]} 3. g3 {[%emt 0:00:19]} g6 {[%emt 0:00:00]} 4. Bg2 {[%emt 0:00:18]} Bg7 {[%emt 0:00:04]} 5. d3 {[%emt 0:00:19]} e5 {[%emt 0:01:17]} 6. Be3 {[%emt 0:01:15]} d6 {[%emt 0:00:09]} 7. Qd2 {[%emt 0:01:03]} Nge7 {[%emt 0:00:06]} 8. Bh6 {[%emt 0:05:51]} O-O {[%emt 0:00:07]} 9. h4 {[%emt 0:03:03]} f6 {[%emt 0:04:53]} 10. Bxg7 {[%emt 0:00:42]} Kxg7 {[%emt 0:00:06]} 11. h5 {[%emt 0:00:13]} g5 {[%emt 0:00:03]} 12. h6+ {[%emt 0:00:18]} Kh8 {[%emt 0:00:04]} 13. f4 {[%emt 0:01:20]} gxf4 {[%emt 0:00:38]} 14. gxf4 {[%emt 0:00:21]} Bg4 {[%emt 0:00:59]} 15. fxe5 {[%emt 0:20:03]} dxe5 {[%emt 0:02:16]} 16. Bf3 {[%emt 0:02:37]} Be6 $11 {[%emt 0:04:58]} 17. Nge2 {[%emt 0:04:44]} Nd4 {[%emt 0:09:38]} 18. Rf1 {[%emt 0:02:54]} Rc8 {[%emt 0:08:43]} 19. Nxd4 {[%emt 0:11:48]} cxd4 {[%emt 0:02:13]} 20. Ne2 {[%emt 0:00:08]} Qb6 {[%emt 0:10:43]} 21. b3 {[%emt 0:06:27]} Qc5 {[%emt 0:01:10]} 22. Rc1 {[%emt 0:00:55]} Qa3 {[%emt 0:01:03]} 23. c4 {[%emt 0:02:01]} dxc3 {[%emt 0:00:21]} 24. Rxc3 {[%emt 0:00:49]} Nc6 {[%emt 0:10:12]} 25. Bh5 {[%emt 0:04:06]} Rcd8 {[%emt 0:03:18]} 26. Qe3 {[%emt 0:11:45]} Qxa2 {[%emt 0:09:36]} 27. Rxf6 {[%emt 0:01:26]} Qa1+ {[%emt 0:04:11]} 28. Rc1 {[%emt 0:02:50]} Qa5+ {[%emt 0:01:16]} 29. Nc3 {[%emt 0:03:14]} Nb4 {[%emt 0:12:12]} 30. Rxf8+ {[%emt 0:06:02]} Rxf8 {[%emt 0:00:05]} 31. Qg5 {[%emt 0:00:53]} Qc7 {[%emt 0:03:14]} 32. Kd2 {[%emt 0:01:25]} Rf2+ {[%emt 0:04:21]} 33. Be2 {[%emt 0:02:30]} Nc6 {[%emt 0:01:08]} 34. Rg1 {[%emt 0:00:32]} Nd4 {[%emt 0:02:36]} 35. Ke3 {[%emt 0:00:26]} Rf4 {[%emt 0:03:13]} 36. Rg2 {[%emt 0:00:36]} Nxb3 {[%emt 0:00:50]} 37. Bh5 {[%emt 0:00:31]} Qb6+ {[%emt 0:01:10]} 38. Ke2 {[%emt 0:00:28]} Nd4+ {[%emt 0:00:14]} 39. Ke1 {[%emt 0:00:32]} Qc7 {[%emt 0:00:34]} 40. Kd2 {[%emt 0:00:00]} b5 {[%emt 0:00:00]} 41. Ke3 {[%emt 0:06:33]} b4 {[%emt 0:05:00]} 42. Na4 {[%emt 0:02:04]} Qc1+ {[%emt 0:01:01] Kxd4} 0-1

[Event "54th Rubinstein Memorial-A 2018"]
[Site "Polanica-Zdroj"]
[Date "2018.08.24"]
[Round "7"]
[White "Kozak, Antoni"]
[Black "Kucza, Karol"]
[Result "1-0"]
[ECO "D00"]
[WhiteElo "2157"]
[BlackElo "2342"]
[Annotator "NA"]
[PlyCount "73"]
[EventDate "2018.08.18"]
[EventType "swiss"]
[EventCountry "POL"]
[SourceTitle "playchess.com"]
[Source "ChessBase"]
[SourceQuality "1"]
[TimeControl "40/5400+30:1800+30"]

1. d4 {[%emt 0:00:00]} d5 {[%emt 0:00:00]} 2. Bf4 {[%emt 0:00:00]} Nf6 {[%emt 0:00:04]} 3. e3 {[%emt 0:00:00]} c5 {[%emt 0:00:16]} 4. c3 {[%emt 0:00:09]} Nc6 {[%emt 0:00:09]} 5. Nd2 {[%emt 0:00:05]} e6 {[%emt 0:00:19]} 6. Ngf3 {[%emt 0:00:07]} Bd6 {[%emt 0:00:10]} 7. Bg3 {[%emt 0:00:05]} O-O {[%emt 0:00:15]} 8. Bd3 {[%emt 0:00:13]} b6 {[%emt 0:00:21]} 9. e4 {[%emt 0:07:47]} dxe4 {[%emt 0:13:43]} 10. Nxe4 {[%emt 0:00:11]} Nxe4 {[%emt 0:06:05]} 11. Bxe4 {[%emt 0:00:07]} Bb7 {[%emt 0:00:23]} 12. Qa4 {[%emt 0:11:07]} Na5 {[%emt 0:06:06]} 13. dxc5 {[%emt 0:12:45]} Bxc5 {[%emt 0:01:08]} 14. Rd1 {[%emt 0:00:11]} Qc8 {[%emt 0:17:47]} 15. Bxh7+ {[%emt 0:34:19]} Kxh7 {[%emt 0:00:07]} 16. Qh4+ {[%emt 0:00:05]} Kg8 {[%emt 0:00:05]} 17. Ng5 {[%emt 0:00:06]} Rd8 {[%emt 0:00:04]} 18. Qh7+ {[%emt 0:02:46]} Kf8 {[%emt 0:00:05]} 19. Bh4 {[%emt 0:00:07]} Rxd1+ {[%emt 0:24:39]} 20. Kxd1 {[%emt 0:01:03]} Qd7+ {[%emt 0:17:44]} 21. Kc1 {[%emt 0:06:01]} Ke8 {[%emt 0:00:49]} 22. Rd1 {[%emt 0:05:42]} Bd5 {[%emt 0:00:05]} 23. Qxg7 {[%emt 0:00:41]} Bf8 {[%emt 0:00:19]} 24. Qg8 {[%emt 0:01:45]} Qc7 {[%emt 0:06:01]} 25. Nh7 {[%emt 0:08:59]} Qf4+ {[%emt 0:00:01]} 26. Rd2 {[%emt 0:00:08]} Nc4 {[%emt 0:05:43]} 27. Nf6+ {[%emt 0:02:38]} Qxf6 {[%emt 0:00:30]} 28. Bxf6 {[%emt 0:00:06]} Nxd2 {[%emt 0:00:04]} 29. Kxd2 {[%emt 0:00:26]} Kd7 {[%emt 0:00:34]} 30. Qxf7+ {[%emt 0:00:08]} Kc6 {[%emt 0:00:01]} 31. b3 {[%emt 0:01:37]} b5 {[%emt 0:00:15]} 32. Be5 {[%emt 0:00:49]} Rc8 {[%emt 0:00:57]} 33. g4 {[%emt 0:00:33]} Bc5 {[%emt 0:00:10]} 34. g5 {[%emt 0:01:06]} Kb6 {[%emt 0:01:23]} 35. g6 {[%emt 0:01:33]} Be4 {[%emt 0:00:05]} 36. Qxe6+ {[%emt 0:00:45]} Rc6 {[%emt 0:00:05]} 37. Bc7+ {[%emt 0:00:05]} 1-0

[Event "54th Rubinstein Memorial-A 2018"]
[Site "Polanica-Zdroj"]
[Date "2018.08.24"]
[Round "7"]
[White "Klepek, Witold"]
[Black "Nowak, Kamil"]
[Result "1/2-1/2"]
[ECO "C45"]
[WhiteElo "2139"]
[BlackElo "2313"]
[Annotator "NA"]
[PlyCount "87"]
[EventDate "2018.08.18"]
[EventType "swiss"]
[EventCountry "POL"]
[SourceTitle "playchess.com"]
[Source "ChessBase"]
[SourceQuality "1"]
[TimeControl "40/5400+30:1800+30"]

1. e4 {[%emt 0:00:59]} e5 {[%emt 0:00:00]} 2. Nf3 {[%emt 0:00:07]} Nc6 {[%emt 0:00:00]} 3. d4 {[%emt 0:00:06]} exd4 {[%emt 0:00:00]} 4. Nxd4 {[%emt 0:00:04]} Nf6 {[%emt 0:00:05]} 5. Nxc6 {[%emt 0:00:06]} bxc6 {[%emt 0:00:06]} 6. e5 {[%emt 0:00:05]} Qe7 {[%emt 0:00:08]} 7. Qe2 {[%emt 0:00:07]} Nd5 {[%emt 0:00:06]} 8. c4 {[%emt 0:00:05]} Nb6 {[%emt 0:00:04]} 9. Nc3 {[%emt 0:01:07]} Ba6 {[%emt 0:00:43]} 10. Qe4 {[%emt 0:00:24]} Qe6 {[%emt 0:00:54]} 11. b3 {[%emt 0:06:10] C45: Scotch Game} Bb4 {[%emt 0:00:18]} 12. Bd2 {[%emt 0:00:10]} Bxc3 {[%emt 0:00:26]} 13. Bxc3 {[%emt 0:00:10]} d5 {[%emt 0:00:03]} 14. cxd5 {[%emt 0:12:36]} (14. Qh4 dxc4 15. Rc1 Qg6 16. g3 O-O 17. Be2 c5 18. O-O Bb7 19. bxc4 Rad8 20. Rcd1 Rxd1 21. Rxd1 Qc2 22. Rd8 {½-½ (22) Motylev,A (2660)-Jakovenko,D (2712) Poikovsky 2016}) 14... cxd5 {[%emt 0:01:06]} 15. Qb4 {[%emt 0:01:05]} Bxf1 {[%emt 0:04:10]} 16. Rxf1 {[%emt 0:08:20]} Nd7 {[%emt 0:06:26]} 17. O-O-O {[%emt 0:02:33]} c5 {[%emt 0:03:38]} 18. Qb7 {[%emt 0:03:16]} Nb6 {[%emt 0:00:10]} 19. f4 $146 {[%emt 0:00:05]} O-O {[%emt 0:05:07]} 20. f5 {[%emt 0:03:01]} Qh6+ {[%emt 0:00:39]} 21. Kb1 {[%emt 0:00:40]} Qxh2 {[%emt 0:14:21]} 22. f6 {[%emt 0:12:17]} Qg3 $11 {[%emt 0:02:36]} 23. fxg7 {[%emt 0:04:35]} Qxg7 {[%emt 0:00:18]} 24. Rf6 {[%emt 0:00:55]} Rad8 {[%emt 0:13:22]} 25. Rdf1 {[%emt 0:10:24]} Qxg2 {[%emt 0:05:16]} 26. Qe7 {[%emt 0:10:28]} Rd7 {[%emt 0:10:28]} 27. Qxc5 {[%emt 0:01:38]} d4 {[%emt 0:01:55]} 28. Bb2 {[%emt 0:11:14]} Rc8 {[%emt 0:00:02]} 29. Qa5 {[%emt 0:01:34]} Nd5 {[%emt 0:01:02]} 30. Qe1 {[%emt 0:01:24]} Rc2 {[%emt 0:04:51]} 31. R6f2 {[%emt 0:04:44]} Rxf2 {[%emt 0:00:52]} 32. Rxf2 {[%emt 0:00:55]} Qg6+ {[%emt 0:00:32]} 33. Ka1 {[%emt 0:00:03]} Ne3 {[%emt 0:01:37]} 34. e6 {[%emt 0:02:43]} Qxe6 {[%emt 0:03:43]} 35. Qb4 {[%emt 0:01:01]} Qb6 {[%emt 0:09:54]} 36. Qa4 {[%emt 0:01:46]} Rd8 {[%emt 0:00:24]} 37. Rd2 {[%emt 0:00:22]} a6 {[%emt 0:04:15]} 38. Bxd4 {[%emt 0:01:05]} Rxd4 {[%emt 0:01:12]} 39. Qe8+ {[%emt 0:00:08]} Kg7 {[%emt 0:00:06]} 40. Qxe3 {[%emt 0:00:00]} Rd6 {[%emt 0:00:00]} 41. Qc3+ {[%emt 0:05:38]} Kg8 {[%emt 0:01:36]} 42. Qc8+ {[%emt 0:00:22]} Kg7 {[%emt 0:00:07]} 43. Qc3+ {[%emt 0:00:02]} Kg8 {[%emt 0:00:10]} 44. Qc8+ {[%emt 0:00:15]} 1/2-1/2

[Event "54th Rubinstein Memorial-A 2018"]
[Site "Polanica-Zdroj"]
[Date "2018.08.24"]
[Round "7"]
[White "Bilczewski, Kacper"]
[Black "Reza, Wojciech"]
[Result "1/2-1/2"]
[ECO "B22"]
[WhiteElo "2089"]
[BlackElo "2303"]
[Annotator "NA"]
[PlyCount "34"]
[EventDate "2018.08.18"]
[EventType "swiss"]
[EventCountry "POL"]
[SourceTitle "playchess.com"]
[Source "ChessBase"]
[SourceQuality "1"]
[TimeControl "40/5400+30:1800+30"]

1. e4 {[%emt 0:00:00]} c5 {[%emt 0:00:51]} 2. c3 {[%emt 0:00:00]} Nf6 {[%emt 0:00:21]} 3. e5 {[%emt 0:00:00]} Nd5 {[%emt 0:00:05]} 4. d4 {[%emt 0:00:00]} cxd4 {[%emt 0:00:25]} 5. cxd4 {[%emt 0:00:00]} d6 {[%emt 0:00:20]} 6. Bc4 {[%emt 0:00:11]} Nb6 {[%emt 0:00:38]} 7. Bb5+ {[%emt 0:00:04]} Bd7 {[%emt 0:00:08]} 8. e6 {[%emt 0:00:13]} Bxb5 {[%emt 0:00:03]} 9. Qh5 {[%emt 0:00:11]} Qc8 {[%emt 0:00:03]} 10. Qxb5+ {[%emt 0:00:11]} Kd8 {[%emt 0:00:02]} 11. Nc3 {[%emt 0:04:53]} Qxe6+ {[%emt 0:08:27]} 12. Nge2 {[%emt 0:00:31]} d5 {[%emt 0:13:31]} 13. Bf4 {[%emt 0:06:45]} Qc6 {[%emt 0:09:47]} 14. Qd3 {[%emt 0:00:34]} Qg6 {[%emt 0:02:04]} 15. Qb5 {[%emt 0:11:49]} Qc6 {[%emt 0:06:34]} 16. Qd3 $11 {[%emt 0:08:34]} Qg6 {[%emt 0:00:42]} 17. Qb5 {[%emt 0:00:56]} Qc6 1/2-1/2

[Event "54th Rubinstein Memorial-A 2018"]
[Site "Polanica-Zdroj"]
[Date "2018.08.24"]
[Round "7"]
[White "Budnik, Mateusz"]
[Black "Kumala, Aleksander"]
[Result "0-1"]
[ECO "C47"]
[WhiteElo "2003"]
[BlackElo "2238"]
[Annotator "NA"]
[PlyCount "48"]
[EventDate "2018.08.18"]
[EventType "swiss"]
[EventCountry "POL"]
[SourceTitle "playchess.com"]
[Source "ChessBase"]
[SourceQuality "1"]
[TimeControl "40/5400+30:1800+30"]

1. e4 {[%emt 0:01:45]} Nf6 {[%emt 0:00:00]} 2. Nc3 {[%emt 0:00:09]} e5 {[%emt 0:00:34]} 3. Nf3 {[%emt 0:00:24]} Nc6 {[%emt 0:00:05]} 4. d4 {[%emt 0:00:10]} exd4 {[%emt 0:00:04]} 5. Nxd4 {[%emt 0:00:08]} Nxe4 {[%emt 0:00:03]} 6. Nxe4 {[%emt 0:02:51]} Qe7 {[%emt 0:00:05]} 7. f3 {[%emt 0:00:56]} d5 {[%emt 0:00:04]} 8. Nxc6 {[%emt 0:00:21] C47: Scotch Four Knights and Four Knights with 4 g3} bxc6 {[%emt 0:00:06]} 9. Bd3 {[%emt 0:01:40]} dxe4 {[%emt 0:00:08]} 10. fxe4 {[%emt 0:00:07]} Qh4+ {[%emt 0:00:31]} (10... Qe5 11. O-O Bd6 12. Bf4 Qc5+ 13. Kh1 Bxf4 14. Rxf4 O-O 15. Rh4 Rb8 {1-0 (72) Kobalia,M (2651)-Andreikin,D (2713) Khanty-Mansiysk 2013}) 11. g3 {[%emt 0:01:03]} Qh3 {[%emt 0:00:13]} 12. Qf3 {[%emt 0:02:43]} Bg4 {[%emt 0:01:44]} 13. Qf1 {[%emt 0:00:27]} Qh5 {[%emt 0:00:05]} 14. Bd2 $146 {[%emt 0:00:49]} ({Predecessor:} 14. Qf2 Bd6 15. Bf4 O-O 16. Bxd6 cxd6 {0-1 (40) Doluhanova,E (2336)-Joie,S (2334) Metz 2014}) 14... Bc5 {[%emt 0:10:36]} 15. Be2 {[%emt 0:05:21]} O-O {[%emt 0:01:22]} 16. Bxg4 {[%emt 0:01:46]} Qxg4 {[%emt 0:00:07]} 17. Qf4 {[%emt 0:01:16]} Qe6 {[%emt 0:00:21]} 18. Kd1 {[%emt 0:12:58]} Rfd8 {[%emt 0:06:08]} 19. Kc1 {[%emt 0:03:06]} Rab8 {[%emt 0:01:47]} 20. Rd1 {[%emt 0:02:23]} Qc4 {[%emt 0:00:57]} 21. Qf3 {[%emt 0:02:11]} Bd4 $17 {[%emt 0:05:23]} 22. c3 {[%emt 0:03:17]} Bc5 {[%emt 0:20:03]} 23. Kc2 {[%emt 0:02:01]} Rxb2+ {[%emt 0:00:12]} 24. Kxb2 {[%emt 0:02:24]} Qb5+ {[%emt 0:00:04]} 0-1

[Event "54th Rubinstein Memorial-A 2018"]
[Site "Polanica-Zdroj"]
[Date "2018.08.24"]
[Round "7"]
[White "Rosicki, Marcin"]
[Black "Zaleski, Lukasz"]
[Result "0-1"]
[ECO "C11"]
[WhiteElo "2002"]
[BlackElo "2164"]
[Annotator "NA"]
[PlyCount "82"]
[EventDate "2018.08.18"]
[EventType "swiss"]
[EventCountry "POL"]
[SourceTitle "playchess.com"]
[Source "ChessBase"]
[SourceQuality "1"]
[TimeControl "40/5400+30:1800+30"]

1. e4 e6 2. Nf3 d5 3. Nc3 Nf6 4. e5 Nfd7 5. d4 c5 6. dxc5 Nc6 7. Bg5 Be7 8. Bxe7 Qxe7 9. Bb5 Qxc5 10. O-O O-O 11. Qe2 a6 12. Bxc6 bxc6 13. Rfd1 a5 14. Nd4 a4 15. a3 Nb6 16. Na2 Nc4 17. Nb4 Bb7 $17 (17... Nxb2 $19 18. Rdc1 Qxd4) 18. b3 Nxa3 19. Rxa3 Qxb4 20. Rxa4 Rxa4 21. bxa4 Qxa4 22. Nb3 Ba6 23. Qe3 Qc4 24. Qc5 Qe2 25. Ra1 Qxe5 26. Qxc6 Bc4 27. Qa4 Qc3 28. Rc1 Bxb3 29. Qxb3 Qxb3 30. cxb3 Rb8 31. Kf1 Kf8 32. Rb1 Ke7 33. Ke2 Kd6 34. Kd3 e5 35. b4 Ra8 36. Rb2 Ra3+ 37. Kd2 d4 38. f3 f6 39. f4 e4 40. f5 Kd5 41. b5 Ra7 0-1

[Event "54th Rubinstein Memorial-A 2018"]
[Site "Polanica-Zdroj"]
[Date "2018.08.24"]
[Round "7"]
[White "Schoenau, Helmut"]
[Black "Wisniewski, Michal"]
[Result "0-1"]
[ECO "A29"]
[WhiteElo "1947"]
[BlackElo "2122"]
[Annotator "NA"]
[PlyCount "36"]
[EventDate "2018.08.18"]
[EventType "swiss"]
[EventCountry "POL"]
[SourceTitle "playchess.com"]
[Source "ChessBase"]
[SourceQuality "1"]
[TimeControl "40/5400+30:1800+30"]

1. c4 {[%emt 0:00:00]} Nf6 {[%emt 0:00:00]} 2. Nc3 {[%emt 0:00:00]} e5 {[%emt 0:00:00]} 3. Nf3 {[%emt 0:00:00]} Nc6 {[%emt 0:00:00]} 4. g3 {[%emt 0:00:06]} d5 {[%emt 0:00:00]} 5. cxd5 {[%emt 0:00:16]} Nxd5 {[%emt 0:00:00]} 6. Bg2 {[%emt 0:00:14]} Nb6 {[%emt 0:00:04]} 7. d3 {[%emt 0:01:47]} Be7 {[%emt 0:00:26]} 8. O-O {[%emt 0:00:27]} O-O {[%emt 0:00:06]} 9. a3 {[%emt 0:01:32]} Be6 {[%emt 0:00:16]} 10. b4 {[%emt 0:00:54]} a5 {[%emt 0:00:05]} 11. b5 {[%emt 0:04:50]} Nd4 {[%emt 0:00:07]} 12. Nd2 {[%emt 0:07:33]} c6 {[%emt 0:00:35]} 13. bxc6 {[%emt 0:01:16]} Nxc6 {[%emt 0:01:55]} 14. Bb2 {[%emt 0:02:04]} a4 {[%emt 0:01:18]} 15. Rb1 {[%emt 0:01:59]} Na5 {[%emt 0:14:12]} 16. Nxa4 {[%emt 0:07:00]} Nxa4 {[%emt 0:06:10]} 17. Bxe5 {[%emt 0:00:27]} Nc6 {[%emt 0:03:25]} 18. Bf4 {[%emt 0:00:10]} Nc3 {[%emt 0:00:10]} 0-1